bitfinex-derivatives/quotes_SOLF0:USTF0_20250705
["timestamp","ask_amount","ask_price","bid_price","bid_amount"]
[1751708167742,7.02,147.05,147.02,2.36774605]
[1751708168143,6.7994,147.03,147.01,2.36774605]
[1751708172841,9.38774605,147.05,147.01,2.36774605]
[1751708173149,6.7989,147.04,147.01,9.16774605]
[1751708173348,6.7989,147.04,147.01,2.36774605]
[1751708173541,6.7989,147.04,147.02,2.36774605]
[1751708173742,7.02,147.05,147.03,2.36774605]
[1751708173936,7.02,147.05,147.04,2.36774605]
[1751708175154,13.8186,147.05,147.03,2.36774605]
[1751708175741,2.36774605,147.07,147.03,9.16654605]
[1751708175946,10.78320986,147.08,147.04,2.36774605]
[1751708176452,6.7981,147.06,147.04,2.36774605]
[1751708176641,8.26885541,147.05,147.04,2.36774605]
[1751708177136,15.06705541,147.05,147.04,2.36774605]
[1751708180248,12.53924463,147.05,147.04,2.36774605]
[1751708183752,12.53924463,147.05,147.03,2.36774605]
[1751708184051,5.74104463,147.04,147.03,2.36774605]
[1751708186354,6.798,147.06,147.03,9.16684605]
[1751708186648,5.67772913,147.05,147.04,2.36774605]
[1751708186852,6.7976,147.07,147.04,9.16644605]
[1751708187044,8.15428902,147.06,147.05,2.36774605]
[1751708188253,5.67833414,147.06,147.05,2.36774605]
[1751708191956,12.47603414,147.06,147.05,2.36774605]
[1751708195759,12.47603414,147.06,147.04,2.36774605]
[1751708195958,6.7977,147.06,147.04,2.36774605]
[1751708196158,5.68342964,147.05,147.04,2.36774605]
[1751708196961,5.68342964,147.05,147.04,9.16644605]
[1751708199457,5.68342964,147.05,146.99,46.12]
[1751708199762,5.68342964,147.04,147.03,2.36774605]
[1751708200662,12.48212964,147.04,147.03,2.36774605]
[1751708201161,5.68342964,147.04,147.03,2.36774605]
[1751708202566,6.7978,147.06,147.03,9.16684605]
[1751708202766,5.68840502,147.05,147.04,2.36774605]
[1751708204059,12.48660502,147.05,147.04,2.36774605]
[1751708204258,12.48660502,147.05,147.03,2.36774605]
[1751708204454,5.68840502,147.04,147.03,2.36774605]
[1751708205466,12.48720502,147.04,147.01,6.7997]
[1751708205667,6.7988,147.04,147.03,2.36774605]
[1751708205967,12.48371154,147.04,147.03,2.36774605]
[1751708206368,5.68491154,147.04,147.03,2.36774605]
[1751708209669,12.48361154,147.04,147.03,2.36774605]
[1751708210870,5.68491154,147.04,147.03,2.36774605]
[1751708211773,12.48361154,147.04,147.03,2.36774605]
[1751708213173,14.95940943,147.04,147.03,2.36774605]
[1751708213569,6.7996,147.02,146.99,46.12]
[1751708213775,5.74348012,147.01,147.0,2.36722535]
[1751708213966,5.74348012,147.01,147.0,2.36746182]
[1751708214874,5.74348012,147.01,147.0,9.16796182]
[1751708215470,10.78292563,147.07,147.0,2.36746182]
[1751708215773,6.799,147.04,147.03,2.36746182]
[1751708215975,19.59988911,147.04,147.03,2.36746182]
[1751708219677,6.7995,147.03,147.02,2.36746182]
[1751708219874,19.60038911,147.03,147.02,2.36746182]
[1751708221080,6.7996,147.02,147.01,2.36746182]
[1751708221381,19.60048911,147.02,147.01,2.36746182]
[1751708224680,19.60048911,147.02,147.0,2.36746182]
[1751708224883,10.32511264,147.01,147.0,2.36746182]
[1751708225079,5.74107298,147.01,147.0,9.16796182]
[1751708228680,6.7989,147.04,147.01,6.7997]
[1751708228884,6.7989,147.04,147.03,2.36746182]
[1751708229086,19.78179146,147.04,147.03,2.36746182]
[1751708231187,19.78126805,147.04,147.03,2.36746182]
[1751708232884,19.79018266,147.04,147.03,2.36746182]
[1751708234088,17.31979237,147.04,147.03,2.36746182]
[1751708235190,19.7915059,147.04,147.03,2.36746182]
[1751708235488,12.9926059,147.04,147.03,2.36746182]
[1751708238391,19.7913059,147.04,147.03,2.36746182]
[1751708240189,6.7995,147.03,147.02,2.36746182]
[1751708240392,19.7921059,147.03,147.02,2.36746182]
[1751708241489,12.9926059,147.03,147.02,2.36746182]
[1751708242288,12.9926059,147.03,147.02,9.16706182]
[1751708246991,12.9926059,147.03,147.02,2.36746182]
[1751708248996,12.9926059,147.03,147.02,9.16706182]
[1751708249795,12.9926059,147.03,147.02,2.36746182]
[1751708250094,12.9926059,147.03,147.01,2.36685819]
[1751708250296,5.73373667,147.02,147.01,2.36685819]
[1751708250798,17.33436329,147.02,147.0,2.36671715]
[1751708250993,5.73373667,147.01,146.99,46.12]
[1751708251191,6.35316933,147.06,147.0,2.3662098]
[1751708251385,17.85330305,147.05,147.04,2.3662098]
[1751708251593,17.85330305,147.05,147.03,2.3662098]
[1751708251594,24.65180305,147.05,147.03,2.3662098]
[1751708251790,13.04875757,147.04,147.03,2.3662098]
[1751708255203,19.84745757,147.04,147.03,2.3662098]
[1751708255397,24.66377712,147.04,147.03,2.3662098]
[1751708255604,19.8602965,147.04,147.03,2.3662098]
[1751708256401,15.04857269,147.04,147.03,2.3662098]
[1751708256596,19.86043327,147.04,147.03,2.3662098]
[1751708257204,19.86043327,147.04,147.02,6.7995]
[1751708257406,6.7987,147.04,147.03,2.3662098]
[1751708257603,19.86070076,147.04,147.03,2.3662098]
[1751708259306,15.42821056,147.04,146.99,46.12]
[1751708259505,15.42821056,147.04,146.88,13.6114]
[1751708259506,2.3678474,147.0,146.91,4.6951]
[1751708259799,6.803,146.95,146.9,46.18]
[1751708260006,2.36886509,146.98,146.94,2.36886509]
[1751708260204,13.47557988,146.97,146.9,46.18]
[1751708260402,10.97266726,146.96,146.95,2.36886509]
[1751708260901,10.97266726,146.96,146.95,9.17166509]
[1751708261900,5.22720539,146.96,146.95,9.17166509]
[1751708262398,6.801,146.99,146.95,9.17166509]
[1751708262605,11.04493982,146.98,146.95,6.8028]
[1751708262805,5.21820986,146.97,146.95,6.8028]
[1751708263100,6.35316933,147.01,146.9,46.18]
[1751708263304,18.21824405,147.0,146.9,46.18]
[1751708263504,13.39951303,146.99,146.9,46.18]
[1751708263703,6.8022,146.97,146.93,6.8036]
[1751708264005,10.89882797,146.96,146.94,3.70127974]
[1751708264200,5.07155676,146.95,146.92,3.70127974]
[1751708264403,4.6399,146.98,146.92,3.70127974]
[1751708264605,18.35815379,146.97,146.92,3.70127974]
[1751708264805,6.8031,146.95,146.92,3.70127974]
[1751708265005,10.89064135,146.94,146.92,3.70127974]
[1751708265305,6.8031,146.95,146.91,6.8046]
[1751708265500,6.8031,146.95,146.91,10.50587974]
[1751708267608,2.2787,146.98,146.93,3.70127974]
[1751708267900,10.8266142,146.97,146.93,3.70127974]
[1751708268102,5.06165317,146.96,146.93,3.70127974]
[1751708268304,2.2787,146.98,146.93,3.70127974]
[1751708268500,5.76371747,146.97,146.93,3.70127974]
[1751708268700,2.2787,146.98,146.93,3.70127974]
[1751708268901,5.76371738,146.97,146.93,3.70127974]
[1751708269101,2.2787,146.98,146.93,3.70127974]
[1751708269301,5.76371927,146.97,146.93,3.70127974]
[1751708269510,6.8023,146.97,146.94,6.803]
[1751708271411,2.2787,146.98,146.93,3.70127974]
[1751708271412,2.3886,147.0,146.93,3.70127974]
[1751708271608,10.79648782,146.99,146.93,3.70127974]
[1751708271913,6.8013,146.99,146.95,6.8025]
[1751708273208,6.8013,146.99,146.95,10.50377974]
[1751708273707,2.3886,147.0,146.95,3.70127974]
[1751708273910,5.75316943,146.99,146.95,3.70127974]
[1751708274111,2.3886,147.0,146.95,3.70127974]
[1751708274306,5.75316564,146.99,146.95,3.70127974]
[1751708274507,6.801,146.99,146.96,6.8021]
[1751708278813,6.8007,147.0,146.97,6.8019]
[1751708279015,4.6725,147.02,146.97,3.70127974]
[1751708279217,10.86573679,147.01,146.97,3.70127974]
[1751708279512,10.86573679,147.0,146.97,3.70127974]
[1751708279710,4.6725,147.02,146.97,3.70127974]
[1751708279913,10.86647099,147.01,146.97,3.70127974]
[1751708280117,10.86647099,147.0,146.97,3.70127974]
[1751708280416,4.6725,147.02,146.97,3.70127974]
[1751708280609,13.36617296,147.01,146.97,3.70127974]
[1751708280816,10.86656894,147.0,146.97,3.70127974]
[1751708281013,10.86656894,146.99,146.97,3.70127974]
[1751708281214,6.8013,146.99,146.97,3.70127974]
[1751708284514,6.8014,146.98,146.97,3.70127974]
[1751708284713,6.8014,146.98,146.96,6.8021]
[1751708284914,6.8014,146.98,146.95,50.00127974]
[1751708284915,6.8014,146.98,146.95,56.80397974]
[1751708285112,6.802,146.97,146.95,50.00127974]
[1751708285313,6.802,146.97,146.95,46.3]
[1751708288422,6.8024,146.96,146.95,46.3]
[1751708288622,11.87884747,146.96,146.93,6.8035]
[1751708288818,6.8024,146.96,146.93,6.8035]
[1751708298829,6.8024,146.96,146.94,6.8033]
[1751708299031,6.8022,146.97,146.94,6.8033]
[1751708302129,6.8024,146.96,146.94,6.8033]
[1751708303833,5.06134476,146.95,146.94,6.8033]
[1751708304332,10.87798487,146.95,146.94,6.8033]
[1751708305836,10.87798487,146.95,146.94,9.17223656]
[1751708307137,10.87798487,146.95,146.94,2.36893656]
[1751708308335,17.68078487,146.95,146.94,2.36893656]
[1751708308538,17.68078487,146.95,146.93,9.17243656]
[1751708308731,5.81664011,146.94,146.93,9.17243656]
[1751708309738,5.81664011,146.94,146.93,6.8035]
[1751708316639,17.68741478,146.94,146.91,46.3]
[1751708316839,10.88401478,146.93,146.91,46.3]
[1751708317041,10.88401478,146.92,146.91,46.3]
[1751708318037,10.88401478,146.92,146.9,6.8049]
[1751708318239,10.88134893,146.91,146.89,10.50760719]
[1751708318447,6.8045,146.92,146.89,10.50760719]
[1751708318645,10.8808138,146.91,146.89,10.50760719]
[1751708318942,6.8045,146.92,146.89,10.50760719]
[1751708319145,10.87944915,146.91,146.89,10.50760719]
[1751708319347,6.8045,146.92,146.89,10.50760719]
[1751708319543,10.85551062,146.91,146.89,10.50760719]
[1751708319744,6.8045,146.92,146.89,10.50760719]
[1751708319949,10.85550765,146.91,146.89,10.50760719]
[1751708320147,6.8045,146.92,146.89,10.50760719]
[1751708321847,6.8045,146.92,146.9,6.805]
[1751708324544,5.0217956,146.91,146.89,6.8054]
[1751708324744,6.8045,146.92,146.89,10.50750719]
[1751708324945,10.80661494,146.91,146.89,10.50750719]
[1751708325146,6.8045,146.92,146.89,10.50750719]
[1751708326653,6.8045,146.92,146.89,6.8054]
[1751708326850,6.8045,146.92,146.89,10.50750719]
[1751708327452,6.35316933,146.95,146.89,6.8054]
[1751708327646,13.28594758,146.94,146.89,3.70210719]
[1751708327853,13.28594758,146.93,146.87,47.4635527]
[1751708328055,6.8059,146.89,146.87,46.28]
[1751708330354,6.8061,146.88,146.85,10.50950719]
[1751708334952,6.8061,146.88,146.86,6.8069]
[1751708339769,6.8061,146.88,146.86,9.17849282]
[1751708341967,6.8061,146.88,146.85,6.8073]
[1751708342368,6.8061,146.88,146.85,9.17889282]
[1751708343767,6.8061,146.88,146.86,9.17839282]
[1751708343964,6.8061,146.88,146.87,2.37159282]
[1751708346369,6.8061,146.88,146.86,2.37159282]
[1751708349171,6.8061,146.88,146.87,2.37159282]
[1751708353371,6.8061,146.88,146.86,9.17849282]
[1751708356373,6.8061,146.88,146.87,2.37159282]
[1751708356571,12.56925543,146.88,146.87,2.37159282]
[1751708356767,6.35316933,146.93,146.87,2.37159282]
[1751708356972,5.76398025,146.92,146.9,2.37035708]
[1751708357275,5.76398025,146.91,146.9,2.37035708]
[1751708357778,6.35316933,146.99,146.9,2.36933147]
[1751708357978,6.8023,146.97,146.96,2.36933147]
[1751708358179,17.54815037,146.97,146.96,2.36933147]
[1751708358378,13.24090908,146.97,146.96,9.17173147]
[1751708358581,10.74585037,146.97,146.92,46.18]
[1751708358778,46.18,147.0,146.96,2.36933147]
[1751708359078,13.26385838,146.99,146.98,2.36933147]
[1751708359480,20.06525838,146.99,146.98,2.36933147]
[1751708359779,20.06525838,146.99,146.96,3.70001728]
[1751708360080,10.76860541,146.98,146.96,3.70001728]
[1751708360281,6.8014,146.99,146.96,3.70001728]
[1751708360483,10.76589683,146.98,146.96,3.70001728]
[1751708360678,5.76799644,146.97,146.96,3.70001728]
[1751708361280,6.8014,146.99,146.96,3.70001728]
[1751708361480,10.81181999,146.98,146.96,3.70001728]
[1751708361680,6.8015,146.98,146.96,3.70001728]
[1751708370779,6.8015,146.98,146.96,10.50231728]
[1751708370984,6.8011,146.99,146.96,3.70001728]
[1751708371388,6.8011,146.99,146.96,10.50221728]
[1751708375987,6.8009,147.0,146.97,6.8018]
[1751708376292,6.8009,147.0,146.96,3.70001728]
[1751708376493,6.8009,147.0,146.97,6.8016]
[1751708381896,6.8009,147.0,146.99,2.36777316]
[1751708382394,6.8009,147.0,146.98,2.36777316]
[1751708384095,6.8015,146.98,146.97,2.36777316]
[1751708387192,6.8011,146.99,146.97,9.16967316]
[1751708387392,6.8011,146.99,146.98,2.36777316]
[1751708387700,4.7308,147.01,146.98,2.36777316]
[1751708387895,11.91401696,147.0,146.98,2.36777316]
[1751708388093,6.8007,147.0,146.98,2.36777316]
[1751708390799,4.7308,147.01,146.98,2.36777316]
[1751708390996,5.09569799,147.0,146.98,2.36777316]
[1751708391295,4.7308,147.01,146.98,2.36777316]
[1751708391498,6.801,146.99,146.98,2.36777316]
[1751708392197,4.7308,147.01,146.98,2.36777316]
[1751708392498,5.09845027,147.0,146.98,2.36777316]
[1751708392703,4.7308,147.01,146.98,2.36777316]
[1751708392901,5.09845027,147.0,146.98,2.36777316]
[1751708393100,4.7308,147.01,146.98,2.36777316]
[1751708393300,10.90138902,147.0,146.98,2.36777316]
[1751708393491,4.7308,147.01,146.98,2.36777316]
[1751708393693,6.801,146.99,146.98,2.36777316]
[1751708394298,11.90329483,146.99,146.98,2.36777316]
[1751708396897,6.801,146.99,146.98,2.36777316]
[1751708397098,11.91119664,146.99,146.98,2.36777316]
[1751708398597,5.11019664,146.99,146.98,2.36777316]
[1751708398902,54.79346933,147.05,146.98,2.36777316]
[1751708399102,8.33489854,147.04,147.01,2.36777316]
[1751708399402,15.13449854,147.03,147.02,2.36777316]
[1751708401299,15.14184079,147.03,147.02,2.36777316]
[1751708401496,8.34224079,147.03,147.0,2.36777316]
[1751708401700,5.81809916,147.02,147.0,2.36777316]
[1751708401900,5.81809916,147.01,147.0,2.36777316]
[1751708402102,8.3444089,147.01,147.0,9.16807316]
[1751708402605,8.3444089,147.01,147.0,2.36777316]
[1751708403008,8.3444089,147.01,146.98,6.801]
[1751708403301,10.71194406,147.0,146.97,46.14]
[1751708403506,8.3441709,146.99,146.97,46.14]
[1751708403705,5.81809916,146.98,146.97,52.9417]
[1751708404098,5.81809916,146.98,146.97,55.30947316]
[1751708405809,5.81809916,146.98,146.97,52.9417]
[1751708407309,5.81809916,146.98,146.97,46.14]
[1751708408310,12.61949916,146.98,146.97,46.14]
[1751708408511,12.61949916,146.98,146.95,6.8026]
[1751708408810,5.81809916,146.97,146.95,6.8026]
[1751708409008,6.8014,146.98,146.95,6.8026]
[1751708409205,5.85345121,146.97,146.95,6.8026]
[1751708409508,5.85338147,146.96,146.95,6.8026]
[1751708410813,10.91950863,146.96,146.95,6.8026]
[1751708411908,10.91968558,146.96,146.95,6.8026]
[1751708412305,5.85338147,146.96,146.95,6.8026]
[1751708416118,10.91627956,146.96,146.95,6.8026]
[1751708420819,6.35316933,147.02,146.94,3.70002516]
[1751708421021,7.28379983,147.01,146.98,3.70002516]
[1751708421220,2.52649053,147.0,146.98,3.70002516]
[1751708421520,6.8004,147.01,146.98,10.50122516]
[1751708421722,9.33270504,147.0,146.98,10.50122516]
[1751708421922,6.8006,147.0,146.97,6.8017]
[1751708424130,6.8006,147.0,146.97,6.8018]
[1751708425131,6.8014,146.99,146.96,6.8023]
[1751708425432,6.35316933,146.99,146.95,3.70002516]
[1751708425832,6.8017,146.98,146.95,10.50242516]
[1751708426335,6.8017,146.98,146.96,6.8023]
[1751708426833,6.8012,146.99,146.95,3.70002516]
[1751708427031,2.53690268,146.98,146.95,3.70002516]
[1751708427233,6.8012,146.99,146.96,6.8023]
[1751708427537,2.53707809,146.98,146.95,3.70002516]
[1751708427831,6.8012,146.99,146.95,3.70002516]
[1751708428634,6.8007,147.0,146.97,6.8019]
[1751708428833,2.53845678,146.99,146.97,6.8019]
[1751708429035,6.35316933,147.01,146.97,6.8019]
[1751708429236,2.53839472,147.0,146.97,6.8019]
[1751708429438,2.53839472,146.99,146.97,6.8019]
[1751708429734,6.8006,147.0,146.97,6.8019]
[1751708429936,2.53845738,146.99,146.97,6.8019]
[1751708430230,6.35316933,147.01,146.97,6.8019]
[1751708430434,2.53847401,147.0,146.97,6.8019]
[1751708430636,2.53847401,146.99,146.97,6.8019]
[1751708430837,6.35316933,147.01,146.97,6.8019]
[1751708431032,2.53503495,147.0,146.97,6.8019]
[1751708431232,2.53503495,146.99,146.97,6.8019]
[1751708431540,6.801,146.99,146.97,6.8019]
[1751708432737,13.35503577,146.98,146.97,6.8019]
[1751708435741,13.35503577,146.98,146.97,9.17007688]
[1751708438341,10.82001842,146.98,146.97,9.17007688]
[1751708438641,17.62151842,146.98,146.97,2.36817688]
[1751708439742,17.62151842,146.98,146.96,2.36817688]
[1751708440040,10.82001842,146.97,146.95,9.17097688]
[1751708440240,10.82001842,146.96,146.95,9.17097688]
[1751708441941,10.82001842,146.96,146.95,6.8028]
[1751708442142,10.82001842,146.96,146.95,9.17097688]
[1751708446646,5.82067587,146.96,146.95,9.17097688]
[1751708446856,10.80818089,146.96,146.95,9.17097688]
[1751708449653,4.98750502,146.96,146.95,9.17097688]
[1751708449852,10.78711547,146.96,146.95,9.17097688]
[1751708456456,10.78711547,146.96,146.95,9.17139698]
[1751708458759,10.78711547,146.96,146.95,9.17136982]
[1751708472063,10.78711547,146.96,146.95,204.31136982]
[1751708474065,5.79961045,146.96,146.95,204.31136982]
[1751708476766,10.79982458,146.96,146.95,204.31136982]
[1751708479368,13.33340429,146.96,146.95,204.31136982]
[1751708479562,5.79961045,146.96,146.95,204.31125616]
[1751708479868,13.32745223,146.96,146.95,204.31125616]
[1751708484573,13.32745223,146.96,146.95,204.31112052]
[1751708485475,13.33025055,146.96,146.95,204.31112052]
[1751708491679,13.33025055,146.96,146.95,204.31132428]
[1751708493483,20.13265055,146.96,146.94,6.8031]
[1751708493679,10.79665403,146.95,146.94,9.17162428]
[1751708493880,13.3396582,146.95,146.94,204.29162428]
[1751708494286,13.33040843,146.95,146.94,204.29162428]
[1751708495084,8.3428277,146.95,146.94,204.29208646]
[1751708495286,13.32909746,146.95,146.94,204.29208646]
[1751708496287,10.78588021,146.95,146.94,204.29208646]
[1751708498588,13.32568373,146.95,146.94,204.29208646]
[1751708506094,13.32234581,146.95,146.94,204.29208646]
[1751708506393,13.31997464,146.95,146.94,204.29208646]
[1751708506593,13.31997464,146.95,146.94,9.17208646]
[1751708506789,13.31997464,146.95,146.94,204.27208646]
[1751708507294,10.78254229,146.95,146.94,204.27208646]
[1751708508998,10.77165959,146.95,146.94,204.27208646]
[1751708511701,13.318794,146.95,146.94,204.27208646]
[1751708512200,10.77165959,146.95,146.94,204.27208646]
[1751708519307,13.32016688,146.95,146.94,204.27208646]
[1751708520504,5.79961045,146.95,146.94,204.27208646]
[1751708520809,10.77890314,146.95,146.94,204.27208646]
[1751708521108,13.32714115,146.95,146.94,204.27208646]
[1751708521603,10.77890314,146.95,146.94,204.27208646]
[1751708522105,4.97929269,146.95,146.94,204.27208646]
[1751708522305,11.01225601,147.0,146.97,6.8015]
[1751708522505,13.14292467,146.99,146.98,197.44898646]
[1751708522709,10.59462699,146.99,146.98,197.44898646]
[1751708522908,13.14292189,146.99,146.98,197.44898646]
[1751708523298,8.35756601,146.99,146.98,197.44898646]
[1751708526116,6.34545601,147.02,146.98,197.44898646]
[1751708526315,6.34545601,147.04,147.01,2.36898646]
[1751708526506,6.34545601,147.04,147.03,2.36898646]
[1751708526907,6.34545601,147.04,147.03,9.16808646]
[1751708527104,6.34545601,147.06,147.03,2.36898646]
[1751708527310,6.34545601,147.07,147.05,2.36898646]
[1751708527505,13.14305601,147.07,147.06,2.36898646]
[1751708527706,17.94647904,147.07,147.05,2.36898646]
[1751708527906,13.14305601,147.07,147.05,2.36898646]
[1751708529115,6.7977,147.06,147.05,2.36898646]
[1751708530014,6.7983,147.05,147.04,2.36898646]
[1751708530211,2.36898646,147.05,147.02,46.12]
[1751708531520,6.7989,147.04,147.02,46.12]
[1751708533220,6.7991,147.03,147.02,46.12]
[1751708534318,11.76325886,147.03,147.02,46.12]
[1751708536417,4.96415886,147.03,147.02,46.12]
[1751708537021,4.9520946,147.03,147.02,46.12]
[1751708538123,10.71859475,147.03,147.02,46.12]
[1751708538322,10.71859475,147.03,147.02,48.48898646]
[1751708539414,5.76650015,147.03,147.02,48.48898646]
[1751708539618,5.76650015,147.03,147.02,55.28858646]
[1751708542028,6.7979,147.06,147.02,48.48898646]
[1751708542223,10.71529129,147.05,147.04,2.36898646]
[1751708543626,10.71529129,147.05,147.04,9.16768646]
[1751708544627,5.76580819,147.05,147.04,9.16768646]
[1751708545325,6.7979,147.06,147.04,9.16768646]
[1751708545626,6.7979,147.06,147.05,2.36898646]
[1751708545829,17.49672318,147.06,147.05,2.36898646]
[1751708548026,17.49672318,147.06,147.04,2.36898646]
[1751708548217,6.7979,147.06,147.04,2.36898646]
[1751708550430,6.7982,147.05,147.04,2.36898646]
[1751708550926,6.7981,147.06,147.04,2.36898646]
[1751708554034,6.7982,147.05,147.04,2.36898646]
[1751708554237,11.77712926,147.05,147.04,2.36898646]
[1751708555138,17.53744339,147.05,147.04,2.36898646]
[1751708561341,10.73924339,147.05,147.04,2.36898646]
[1751708563144,10.73924339,147.05,147.04,9.16768646]
[1751708566941,5.76031413,147.05,147.04,6.7987]
[1751708567146,10.73984524,147.05,147.04,9.16768646]
[1751708581154,10.79805941,147.05,147.04,9.16768646]
[1751708585355,13.24450385,147.05,147.04,9.16768646]
[1751708585657,7.48418972,147.05,147.04,9.16768646]
[1751708585855,13.28048834,147.05,147.04,9.16768646]
[1751708586655,13.28155958,147.05,147.04,9.16768646]
[1751708589656,13.28155958,147.05,147.04,2.36898646]
[1751708590552,20.07975958,147.05,147.04,2.36898646]
[1751708594552,13.28155958,147.05,147.04,2.36898646]
[1751708595458,8.2438143,147.05,147.04,2.36898646]
[1751708595657,13.25690492,147.05,147.04,2.36898646]
[1751708596461,13.25690492,147.05,147.04,9.16768646]
[1751708596655,10.80938924,147.05,147.04,9.16768646]
[1751708604871,13.28262529,147.05,147.04,2.36898646]
[1751708605068,7.48632667,147.05,147.04,2.36898646]
[1751708606769,13.28763701,147.05,147.04,2.36898646]
[1751708609171,13.28763701,147.05,147.04,9.16768646]
[1751708610274,13.28645984,147.05,147.04,9.16768646]
[1751708610771,10.81440096,147.05,147.04,9.16768646]
[1751708612973,13.28636677,147.05,147.04,9.16768646]
[1751708613377,8.27327615,147.05,147.04,9.16768646]
[1751708613675,13.26504182,147.05,147.04,9.16768646]
[1751708617783,13.26504182,147.05,147.03,6.799]
[1751708617979,13.26504182,147.04,147.03,6.799]
[1751708618184,13.26504182,147.04,147.03,9.16798646]
[1751708619977,10.79307601,147.04,147.03,9.16798646]
[1751708625886,6.34439453,147.07,147.06,6.7978]
[1751708626087,13.71277025,147.07,147.06,9.16678646]
[1751708626988,2.47415305,147.07,147.06,9.16678646]
[1751708627286,6.34439453,147.08,147.07,6.7973]
[1751708627482,8.81858178,147.08,147.02,46.12]
[1751708627784,2.47381452,147.07,147.06,2.36898646]
[1751708627986,7.36765916,147.07,147.06,2.36898646]
[1751708628786,7.36765916,147.07,147.04,2.36898646]
[1751708628978,7.36765916,147.06,147.04,2.36898646]
[1751708629179,2.47381452,147.05,147.04,2.36898646]
[1751708630882,2.47381452,147.05,147.04,9.16768646]
[1751708631488,11.4587,147.07,147.04,9.16768646]
[1751708631683,11.4587,147.07,147.06,2.36898646]
[1751708631884,18.86210152,147.07,147.06,2.36898646]
[1751708636593,18.84961177,147.07,147.06,2.36898646]
[1751708637994,29.50198393,147.07,147.06,2.36898646]
[1751708638997,35.84637846,147.07,147.05,6.7982]
[1751708639196,17.80309453,147.07,147.06,2.36898646]
[1751708639394,35.8211163,147.07,147.06,2.36898646]
[1751708641893,35.8211163,147.07,147.05,2.36898646]
[1751708642094,18.01802177,147.06,147.05,2.36898646]
[1751708642698,18.01802177,147.06,147.05,2.36554071]
[1751708643998,24.81582177,147.06,147.05,2.36554071]
[1751708644301,19.86548484,147.06,147.05,2.36554071]
[1751708644599,24.81643678,147.06,147.05,2.36554071]
[1751708645099,24.81643678,147.06,146.97,587.14]
[1751708645100,18.01863678,147.06,146.97,587.14]
[1751708645301,6.34439453,147.03,146.98,2.36554071]
[1751708645500,13.1269104,147.02,146.98,2.36554071]
[1751708645705,13.1269104,147.01,147.0,2.36554071]
[1751708646204,10.66375593,147.01,147.0,2.36721536]
[1751708649409,10.66375593,147.01,147.0,9.16771536]
[1751708650210,5.71280399,147.01,147.0,9.16771536]
[1751708651713,5.71280399,147.01,147.0,6.8005]
[1751708651917,10.60254138,147.01,147.0,9.16771536]
[1751708653120,5.71280399,147.01,147.0,9.16771536]
[1751708656521,6.7993,147.03,147.0,9.16771536]
[1751708656724,10.74571016,147.02,147.01,2.36721536]
[1751708659131,10.74513526,147.02,147.01,2.36721536]
[1751708660725,5.85871811,147.02,147.01,2.36721536]
[1751708660929,10.73902773,147.02,147.01,2.36721536]
[1751708661122,5.85871811,147.02,147.01,2.36721536]
[1751708665228,5.87335758,147.02,147.01,2.36721536]
[1751708670432,12.67295758,147.02,147.0,6.8005]
[1751708670736,5.87335758,147.01,146.99,201.7008]
[1751708671034,5.87335758,147.0,146.99,204.06801536]
[1751708675238,5.86809907,147.0,146.97,46.04]
[1751708675440,5.86809907,146.99,146.97,46.04]
[1751708675742,2.36721536,147.0,146.97,46.04]
[1751708675942,5.86769337,146.99,146.97,46.04]
[1751708676137,2.36721536,147.0,146.97,46.04]
[1751708676440,5.86730292,146.99,146.97,46.04]
[1751708676640,6.8012,146.99,146.97,52.8417]
[1751708679343,6.8012,146.99,146.97,55.20891536]
[1751708680443,6.8007,147.0,146.98,6.8015]
[1751708680744,5.85067077,146.99,146.98,2.36721536]
[1751708682144,6.32587703,147.03,146.98,2.36721536]
[1751708682341,2.36721536,147.06,146.99,195.12]
[1751708682342,10.70286298,147.02,146.99,195.12]
[1751708682543,5.85318151,147.01,146.99,195.12]
[1751708682744,5.85318151,147.0,146.99,201.921]
[1751708683548,6.32587703,147.04,147.03,6.7991]
[1751708683848,10.71582017,147.04,147.03,9.16631536]
[1751708685340,10.71685226,147.04,147.03,9.16631536]
[1751708685750,10.71685226,147.04,147.03,10.49555525]
[1751708688656,13.16594452,147.04,147.03,10.49555525]
[1751708690356,19.96464452,147.04,147.01,46.08]
[1751708690552,13.16594452,147.03,147.01,49.77645525]
[1751708690855,10.71685226,147.02,147.01,49.77645525]
[1751708691051,10.71685226,147.02,147.01,56.57635525]
[1751708691253,10.76971365,147.02,147.01,56.57635525]
[1751708694756,5.85453211,147.02,147.01,56.57635525]
[1751708701466,10.757715,147.02,147.01,52.8799]
[1751708702667,10.757715,147.02,147.01,6.7999]
[1751708703272,4.90318289,147.02,147.01,6.7999]
[1751708704778,10.78190022,147.02,147.01,6.7999]